Cogmind - Beta 15 @@@ ROGUE MODE // 2025.06.11 @ 19:26:26 Player: VT-MNC Result: Self-destructed Performance ------------- Evolutions (2) 1000 Regions Visited (3) 600 Robots Destroyed (55) 275 Value Destroyed (1325) 1325 Prototype IDs (15) 300 Alien Tech Used (0) 0 Bonus (-36) -36 TOTAL SCORE: 3464 Bonus ------- Friendly Fire -36 Cogmind --------- Core Integrity 462/550 Matter 93/300 Energy 198/250 System Corruption 5% Temperature Cool (75) Movement Treading (400) Ox3 Location -8/Materials Parts ------- > --- POWER (1+1) ------ Ion Engine > --- PROPULSION (4+2) - Light Treads Light Treads Light Treads (+) Light Treads (+) Spiked Treads Compact Wheel > --- UTILITY (4+2) ---- Improved Heat Sink Huge Storage Unit Tower Shield > --- WEAPON (2+2) ----- Field Laser (+) Pulse Rifle (+) Heavy Assault Rifle Subdweller Machine Gun > --- INVENTORY (25) --- Armored Treads Improved VTOL Module Improved Terrain Scanner Gun Armor Hardlight Generator Beam Cannon Faulty Advanced Beam Cannon Heavy Assault Rifle Subdweller Machine Gun Subdweller Machine Gun Light Cannon Light Cannon Light Cannon Light Cannon Mining Laser Multitool Enhanced Flamer Hammer Peak State ------------ > --- POWER ------------ Ion Engine > --- PROPULSION ------- Light Treads Light Treads Light Treads Light Treads Spiked Treads Compact Wheel > --- UTILITY ---------- Improved Heat Sink Huge Storage Unit Tower Shield > --- WEAPON ----------- Field Laser Pulse Rifle Heavy Assault Rifle Subdweller Machine Gun > --- INVENTORY -------- Armored Treads Improved VTOL Module Improved Terrain Scanner Gun Armor Hardlight Generator Beam Cannon Advanced Beam Cannon Heavy Assault Rifle Subdweller Machine Gun Subdweller Machine Gun Light Cannon Light Cannon Light Cannon Light Cannon Mining Laser Multitool Enhanced Flamer Hammer [Rating: 46] Favorites ----------- Power Ion Engine Engine Ion Engine Propulsion Light Treads Treads Light Treads Leg Aluminum Leg Wheel Compact Wheel Flight Unit Improved VTOL Module Utility Huge Storage Unit Device Seismic Detector Storage Huge Storage Unit Processor Transport Network Coupler Hackware Hacking Suite Protection Light Armor Plating Weapon Beam Cannon Energy Gun Subdweller Laser Energy Cannon Beam Cannon Ballistic Gun Assault Rifle Ballistic Cannon Light Cannon Special Weapon Mining Laser Impact Weapon Hammer Build | -11 -10 -10 -8 ------- Run | Yrd Mat Sub Mat Slots Evolved 4 | . . . 4 Power . | . . . . Propulsion 2 | . . . 2 Utility 2 | . . . 2 Weapon . | . . . . Parts Attached 45 | 2 18 12 13 Power 2 | . 1 1 . Engine 2 | . 1 1 . Core . | . . . . Reactor . | . . . . Propulsion 11 | . 7 1 3 Treads 7 | . 4 1 2 Leg 1 | . 1 . . Wheel 2 | . 2 . . Hover . | . . . . Flight 1 | . . . 1 Utility 12 | 1 5 2 4 Device 3 | 1 1 . 1 Storage 1 | . 1 . . Processor 1 | . 1 . . Hackware 1 | . . . 1 Protection 6 | . 2 2 2 Artifact . | . . . . Weapon 20 | 1 5 8 6 Energy Gun 5 | 1 . 2 2 Energy Cannon 3 | . 1 1 1 Ballistic Gun 7 | . 1 4 2 Ballistic Cannon 1 | . 1 . . Launcher . | . . . . Special Weapon 3 | . 2 . 1 Impact Weapon 1 | . . 1 . Slashing Weapon . | . . . . Piercing Weapon . | . . . . Special Melee Weapon . | . . . . Unidentified Prototypes 2 | . . . 2 Parts Lost 6 | . . 2 4 Power . | . . . . Propulsion 1 | . . . 1 Utility 4 | . . 1 3 Weapon 1 | . . 1 . Highest Loss Streak 2 | . . 1 2 To Critical Strikes . | . . . . Average Backups 21 | 6 18 24 22 Power . | 1 1 1 . Propulsion 4 | 4 4 4 3 Utility 6 | . 5 7 4 Weapon 9 | 1 7 11 13 Tool/Special . | . . . . Unused Backups 30 | . 11 7 12 Power 4 | . 3 1 . Propulsion 2 | . 1 . 1 Utility 12 | . 5 2 5 Weapon 11 | . 2 3 6 Tool/Special 1 | . . 1 . Average Slot Usage (%) 99 | . 99 100 98 Engine 13 | . 14 14 8 Treads 21 | . 13 26 26 Leg 1 | . 4 . . Wheel 5 | . 10 1 8 Device 8 | . 10 6 8 Storage 13 | . 14 14 8 Hackware 1 | . . . 8 Protection 6 | . 3 7 8 Energy Gun 2 | . . 3 5 Energy Cannon 11 | . 13 10 3 Ballistic Gun 7 | . 6 8 7 Ballistic Cannon 1 | . 4 . . Special Weapon 3 | . 3 4 1 Peak Build Rating 46 | 8 10 15 46 Average Rating 12 | 6 8 12 23 On Entrance 9 | 6 8 10 14 Naked Turns . | . . . . Heaviest Build 101 | 14 92 100 101 Greatest Support 60 | 20 40 40 60 Greatest Overweight (x) 6 | . 5 6 6 Average Overweight (x) 3 | . 3 2 5 Largest Inventory Capacity 25 | 8 25 25 25 Average Capacity 23 | 8 22 25 25 Most Carried 25 | 8 25 25 25 Average Carried 22 | 6 18 24 23 Final Capacity 25 | 8 25 25 25 Final Carried 25 | 8 25 25 18 Class Distribution -------------------- 100% | Mutant Dominant Class ---------------- Mutant | -10/Materials Mutant | -10/Subcaves Mutant | -8/Materials Resources | -11 -10 -10 -8 ----------- Run | Yrd Mat Sub Mat Matter Collected 1974 | 232 899 565 278 Remotely 85 | . 85 . . Salvage Created 1867 | 102 875 511 379 Parts 127 | 7 51 50 19 Haulers Intercepted 2 | . 2 . . Recyclers Shooed 5 | 1 2 . 2 Parts Field Recycled . | . . . . Retrieved Matter . | . . . . Parts Self-Destructed 8 | . . 8 . Prevented . | . . . . Kills | -11 -10 -10 -8 ------- Run | Yrd Mat Sub Mat Combat Hostiles Destroyed 38 | . 15 11 12 Guns 20 | . 3 7 10 Cannons 18 | . 12 4 2 Classes Destroyed 13 | 2 7 2 2 Worker 2 | . 2 . . Builder 2 | . 2 . . Tunneler 2 | 1 1 . . Hauler 2 | . 2 . . Recycler 5 | 1 3 . 1 Operator 3 | . 3 . . Watcher 1 | . 1 . . Swarmer 12 | . 6 . 6 Grunt 13 | . 9 . 4 Brawler 1 | . . . 1 Sentry 1 | . . . 1 Artisan 1 | . . 1 . Subdweller 11 | . . 11 . Best Kill Streak 7 | 2 7 2 3 Combat Bots Only 6 | . 6 2 3 Max Kills in Single Turn 2 | 1 1 1 2 Gunslinging . | . . . . Exploded . | . . . . Melee . | . . . . Uniques/NPCs Destroyed . | . . . . Combat | -11 -10 -10 -8 -------- Run | Yrd Mat Sub Mat Hostile Shots Fired 199 | . 48 38 113 Missed 48 | . 10 7 31 Hits 151 | . 38 31 82 Melee 1 | . . . 1 Projectile 150 | . 38 31 81 AOE 1 | . . . 1 Critical Strikes 4 | . . . 4 Damage Taken 2442 | . 466 724 1252 Core 290 | . 60 142 88 Absorbed by Shields . | . . . . Redirected to Shielding 9 | . 9 . . Regen/Repaired (Parts) 557 | . 334 . 223 Core Remaining (%) 59 | 100 . 19 . Volleys Fired 241 | 4 99 86 52 Largest 4 | 2 2 2 4 Hottest 179 | 60 160 110 179 Shots Fired 405 | 8 171 120 106 Gun 195 | 8 35 63 89 Cannon 138 | . 111 10 17 Launcher . | . . . . Special 72 | . 25 47 . Kinetic 174 | 4 71 40 59 Thermal 228 | 4 100 77 47 Explosive . | . . . . Electromagnetic 3 | . . 3 . Robot Hit Streak 20 | 3 12 20 11 Robot Miss Streak 4 | 1 4 2 3 Penetration Max . | . . . . Secondary Targets 3 | . . . 3 Max Gunslinging Chain 1 | . . . 1 Shots Hit Robots 230 | 6 91 63 70 Core Hits 77 | 3 33 21 20 Critical Kills . | . . . . Critical Parts Destroyed 1 | . . . 1 Critical Strikes 4 | . . 3 1 Destroy 4 | . . 3 1 Melee Attacks 13 | . . 12 1 Impact 13 | . . 12 1 Slashing . | . . . . Piercing . | . . . . Sneak Attacks . | . . . . Combat Hostiles . | . . . . Follow-up Attacks . | . . . . Damage Inflicted 4202 | 71 1503 1255 1373 Guns 2527 | 71 269 1015 1172 Cannons 1651 | . 1210 240 201 Explosions . | . . . . Melee . | . . . . Ramming . | . . . . Kinetic 2102 | 48 621 640 793 Thermal 2062 | 23 882 577 580 Explosive . | . . . . Electromagnetic 38 | . . 38 . Impact . | . . . . Slashing . | . . . . Piercing . | . . . . Highest Corruption 5 | . . . 5 Average Corruption 5 | . . . 5 Corruption Purged . | . . . . Corruption Blocked . | . . . . Effects 23 | . . . 23 Message Errors 2 | . . . 2 Matter Fused 7 | . . . 7 Heat Flow Errors 5 | . . . 5 Energy Discharges 5 | . . . 5 Parts Rejected 1 | . . . 1 Data Loss (minor) 1 | . . . 1 Data Loss (major) 1 | . . . 1 Misfires 1 | . . . 1 Overload Shots . | . . . . Overflow Damage 56 | . 28 . 28 Projectiles 56 | . 28 . 28 Explosions . | . . . . Melee . | . . . . Knockbacks 5 | . 5 . . Impact . | . . . . Kinetic 5 | . 5 . . Secondary . | . . . . Self-Inflicted Damage . | . . . . Shots . | . . . . Rammed . | . . . . Targets Rammed . | . . . . Kicked . | . . . . Crushed . | . . . . Highest Temperature 295 | . 295 2 259 Average Temperature 61 | . 50 2 92 Received Heat Transfer 822 | . 183 126 513 Effects 2 | . 2 . . Interference 2 | . 2 . . Siege Activations . | . . . . Martial Activations . | . . . . Shielding Activations . | . . . . Robots Disrupted . | . . . . Combat Hostiles . | . . . . Robots Corrupted . | . . . . Combat Hostiles . | . . . . Parts Fried . | . . . . Impact Corruptions . | . . . . Robots Melted . | . . . . Combat Hostiles . | . . . . Parts Melted 1 | . . 1 . Heat Transferred 3744 | 50 1863 758 1073 Parts Sabotaged . | . . . . Parts Stolen . | . . . . Parts Stripped . | . . . . Power Chain Reactions . | . . . . Alert | -11 -10 -10 -8 ------- Run | Yrd Mat Sub Mat Maximum Alert Level 1 | . 1 . . Low Security (%) 93 | 100 91 . 100 Level 1 6 | . 8 . . Level 2 . | . . . . Level 3 . | . . . . Level 4 . | . . . . Level 5 . | . . . . High Security . | . . . . Max Security . | . . . . Peak Influence 217 | 10 217 . 108 Initial . | . . . . Average 70 | 4 83 . 29 Influence Increases 1031 | 10 653 . 368 Destroy 0b10 Robot/C 540 | . 300 . 240 Destroy 0b10 Robot/NC 85 | 10 70 . 5 Destroy Leader 126 | . 76 . 50 Successful Hack 44 | . 31 . 13 Disable Machine 60 | . 45 . 15 Destroy Structure 41 | . 26 . 15 Lose Combat Pursuer 135 | . 105 . 30 Influence Decreases 939 | 10 459 194 276 Entered New Map 94 | . . 94 . Time Decay 825 | 10 459 100 256 Lost Part 20 | . . . 20 Squads Dispatched 6 | . 4 . 2 Investigation 2 | . 1 . 1 Extermination . | . . . . Reinforcement 4 | . 3 . 1 Assault . | . . . . Garrison . | . . . . Intercept . | . . . . Searches Triggered . | . . . . Construction Impeded . | . . . . Haulers Reinforced . | . . . . Active Scanning Responses . | . . . . Cargo Convoy Interrupts . | . . . . Stealth | -11 -10 -10 -8 --------- Run | Yrd Mat Sub Mat Distress Signals 7 | . 3 . 4 Communications Jammed . | . . . . Distress Signals . | . . . . Times Spotted 71 | . 31 11 29 Peak Tracking Total 9 | . 8 2 9 Tactical Retreats 5 | . 3 . 2 Traps | -11 -10 -10 -8 ------- Run | Yrd Mat Sub Mat Traps Triggered 6 | . 3 . 3 Indirectly . | . . . . Trap Hack Attempts . | . . . . Triggered . | . . . . Disarmed . | . . . . Reprogrammed . | . . . . Reused . | . . . . Traps Extracted . | . . . . Installed . | . . . . Triggered . | . . . . Machines | -11 -10 -10 -8 ---------- Run | Yrd Mat Sub Mat Machines Disabled 5 | . 3 1 1 Max in Single Turn 1 | . 1 1 1 Machines Repaired . | . . . . Machines Dismantled . | . . . . Machines Sabotaged . | . . . . Overloaded Fab Kills . | . . . . Hacking | -11 -10 -10 -8 --------- Run | Yrd Mat Sub Mat Machines Accessed 16 | . 9 3 4 Terminals 9 | . 6 . 3 Fabricators . | . . . . Repair Stations 2 | . 1 . 1 Recycling Units 2 | . 2 . . Scanalyzers . | . . . . Garrison Access . | . . . . Total Hacks 49 | . 30 6 13 Successful 28 | . 15 6 7 Failed 20 | . 14 . 6 Catastrophic 2 | . 1 . 1 Database Lockouts 1 | . 1 . . Manual 22 | . 17 . 5 Terminals 25 | . 17 . 8 Fabricators . | . . . . Repair Stations 14 | . 9 . 5 Recycling Units 4 | . 4 . . Scanalyzers . | . . . . Garrison Access . | . . . . Terminal Hacks 12 | . 3 6 3 Record 4 | . . 4 . Part Schematic 2 | . 2 . . Robot Analysis 2 | . 1 . 1 Prototype ID Bank 1 | . . . 1 Open Door 1 | . . 1 . Branch Access Points 1 | . . . 1 Proto ID Catalog 1 | . . 1 . Fabricator Hacks . | . . . . Repair Station Hacks 12 | . 8 . 4 Scan Component 6 | . 4 . 2 Repair 6 | . 4 . 2 Recycling Unit Hacks . | . . . . Scanalyzer . | . . . . Garrison Access Hacks . | . . . . Unauthorized Hacks 4 | . 4 . . Terminals 3 | . 3 . . Botnet 3 | . 3 . . Fabricators . | . . . . Repair Stations . | . . . . Recycling Units 1 | . 1 . . Reject 1 | . 1 . . Scanalyzers . | . . . . Garrison Access . | . . . . Data Cores Recovered 1 | . 1 . . Used . | . . . . Hacking Detections 12 | . 9 . 3 Full Trace Events 1 | . 1 . . Feedback Events . | . . . . Feedback Blocked . | . . . . Robot Schematics Acquired . | . . . . Robots Built . | . . . . Authchips . | . . . . Time . | . . . . Total Robot Build Rating . | . . . . Part Schematics Acquired 2 | . 2 . . Parts Built . | . . . . Authchips . | . . . . Time . | . . . . Total Part Build Rating . | . . . . Parts Repaired 6 | . 4 . 2 Time 156 | . 104 . 52 Parts Recycled . | . . . . Recycled Matter . | . . . . Retrieved Matter . | . . . . Retrieved Components . | . . . . Parts Scanalyzed . | . . . . Part Schematics Acquired . | . . . . Parts Damaged . | . . . . Bothacking | -11 -10 -10 -8 ------------ Run | Yrd Mat Sub Mat Used RIF Installer . | . . . . Robots Hacked . | . . . . Non-combat . | . . . . Combat . | . . . . Robot Hacks Applied . | . . . . Relay Couplers Released . | . . . . Fabnet Peak Effective % . | . . . . Robots Rewired . | . . . . Allies Hacked . | . . . . Hacks Repelled . | . . . . Allies | -11 -10 -10 -8 -------- Run | Yrd Mat Sub Mat Total Allies . | . . . . Largest Group . | . . . . Highest-Rated Group . | . . . . Highest-Rated Ally . | . . . . Total Orders . | . . . . Ally Attacks . | . . . . Total Damage . | . . . . Kills . | . . . . Allies Corrupted . | . . . . Allies Melted . | . . . . Intel | -11 -10 -10 -8 ------- Run | Yrd Mat Sub Mat Active Infowar (turns) 4303 | 10 2335 1573 385 Seismic 4301 | 10 2333 1573 385 T.N.C. 2 | . 2 . . Robot Analysis Total 2 | . 1 . 1 Derelict Logs Recovered 1 | . . 1 . Drone Launches . | . . . . Drone Recoveries . | . . . . Exploration | -11 -10 -10 -8 ------------- Run | Yrd Mat Sub Mat Turns Passed 7585 | 31 2983 3659 912 Spaces Moved 2443 | 12 1102 1039 290 Core . | . . . . Treads 908 | . 31 864 13 Legs 288 | 12 276 . . Wheels 1247 | . 795 175 277 Hover . | . . . . Flight . | . . . . Fastest Speed 120 | 120 120 175 175 Average Speed 222 | 120 165 295 183 Slowest Speed 320 | 120 320 320 246 Overloaded Moves . | . . . . Propulsion Burnouts . | . . . . Robots Hopped . | . . . . Potential Cave-ins 2 | . . 2 . Cave-ins Triggered . | . . . . Exploration Rate (%) 44 | 3 99 49 28 Regions Visited 3 Branch Regions 1 Pre-discovered Areas . | . . . . Known Exits Taken . | . . . . Unknown Exits Taken 3 | 1 1 1 . Scrap Searched 2 | . . 2 . Spaces Dug 30 | . 20 9 1 Terrain Destroyed 54 | . 24 14 16 Melee 1 | . . . 1 Projectile 53 | . 24 14 15 AOE . | . . . . Terrain Rammed . | . . . . Walls Destroyed . | . . . . Machines Disabled . | . . . . Actions | -11 -10 -10 -8 --------- Run | Yrd Mat Sub Mat Total 3975 | 19 2022 1371 563 Wait 1024 | . 707 154 163 Move 2440 | 11 1101 1038 290 Hop . | . . . . Pick Up 66 | 2 34 15 15 Fast Attach 10 | 1 4 . 5 Attach 15 | . . 2 13 Detach . | . . . . Swap 122 | 1 61 50 10 Drop 43 | . 16 14 13 Fire 241 | 4 99 86 52 Melee 13 | . . 12 1 Ram . | . . . . Kick . | . . . . Crush . | . . . . Escape Stasis . | . . . . Rewire . | . . . . Trap . | . . . . Miscellaneous 1 | . . . 1 Route ------- -11/Scrapyard -10/Materials (discovered 6 exits: [*Mat x3] / [*Min x2] / *Sub) -10/Subcaves -8/Materials (discovered 3 exits: *Fac x3) History --------- Turn | Location | Event 15 | -11/Scrapyard | Discovered new exit (range 2) 32 | -11/Scrapyard | Entered Materials 88 | -10/Materials | Discovered new exit (range 15) 303 | -10/Materials | Build established: Mutant 395 | -10/Materials | Discovered new exit (range 10) 862 | -10/Materials | Discovered new exit (range 12) 1399 | -10/Materials | Discovered new exit (range 8) 1617 | -10/Materials | Central database locked down 2036 | -10/Materials | Discovered new exit (range 14) 2542 | -10/Materials | Repaired Lgt. Treads 2569 | -10/Materials | Repaired Lgt. Treads 2596 | -10/Materials | Repaired Assault Rifle 2623 | -10/Materials | Repaired Lgt. Cannon 2813 | -10/Materials | Discovered new exit (range 7) 3015 | -10/Materials | Entered Subcaves 3106 | -10/Subcaves | A swath of the cavern ceiling suddenly collapsed 3297 | -10/Subcaves | Discovered new exit (range 9) 3630 | -10/Subcaves | Visited Clippyterm 3639 | -10/Subcaves | Learned Factory emergency access door positions 3831 | -10/Subcaves | Visited 4L-MR0's lab 3876 | -10/Subcaves | Found Tower Shield 4157 | -10/Subcaves | Ambushed by Subdweller buried in earth 4464 | -10/Subcaves | Shifting Twisted Machinery released Sub. Machine Gun 4617 | -10/Subcaves | Core integrity fell below 50% 4999 | -10/Subcaves | Shifting Twisted Machinery released Sub. Machine Gun 5161 | -10/Subcaves | Disturbed a concealed Subdweller 5763 | -10/Subcaves | Shifting Twisted Machinery released Spk. Treads 5792 | -10/Subcaves | Shifting Twisted Machinery released Sub. Monowheel 6122 | -10/Subcaves | Learned 8 Materials zone layouts 6150 | -10/Subcaves | A Subdweller sparked back to life 6150 | -10/Subcaves | A Subdweller sparked back to life 6157 | -10/Subcaves | Core integrity fell below 20% 6221 | -10/Subcaves | Found Gun Armor 6674 | -10/Subcaves | Entered Materials 6674 | -8/Materials | Evolved 4 slots: Propulsion x2, Utility x2 6675 | -8/Materials | Identified exit to Factory 7537 | -8/Materials | Repaired Lgt. Treads 7564 | -8/Materials | Repaired Lgt. Treads 7573 | -8/Materials | Attached Tower Shield, gained temporary slots: Power, Propulsion x2, Utility x2, Weapon x2 7586 | -8/Materials | Self-destructed Last Messages --------------- 07565_ Switching to secondary target: Y-45 Defender. 07569_ Lgt. Armor Plating destroyed. 07571_ Discarded Hacking Suite. 07573_ Core temporarily expanded with Power slot. 07573_ Core temporarily expanded with Propulsion slot. 07573_ Core temporarily expanded with Utility slot. 07573_ Core temporarily expanded with Weapon slot. 07576_ G-47 Trooper suffers critical hit (Destroy). 07576_ Destroyed Aluminum Leg. 07577_ Recycling unit begins recycling process. 07578_ R-06 Scavenger collects Lgt. Treads. 07578_ H-55 Commando suffers critical hit (Burn). 07578_ Critical hit (Destroy). 07580_ Penetrated by Slug. 07583_ Recycling unit begins recycling process. 07584_ Recycling unit begins matter transfer process. 07586_ Penetrated by Slug. 07586_ Repair Station disabled. 07586_ Backup Laser I tumbles out of repair station. 07586_ Backup Plating I tumbles out of repair station. Map ----- +----------------------------------------------------+ | ??????# ###+######## ## #?????? | | ??????#####+## ###########+###### #?????? | | ????????# # #?????? | | ????????# + #?????? | | ????????# "T" ######## # #?????? | | ?????########## #??????# # #?????? | | ?????# # #??????# #########?????? | | ?????# + #?????##+##### #?????? | | ###??# # #?????# # < #?????? | | #??# # ?????# # #?????? | | #??# ######## #?????#"" + #?????? | | #??# # ## ##?????#"T # ?????? | | #??# ## " " ## #??????#"" # ?????? | | #??# ## "G" ## #??????# # ?????? | | #??# ## """ ## #??????############?????? | | ############## ## ##?????????????#"""?????? | | # ############+## ###############""T?????? | | ??????????????????????????????? ???????????? | | ?????????????????????????????? ????????????? | | ????????????????????????????? #????????????? | | ??????????????????????#######+###??????????? | | ??????????????????????# Y #???????? [? | | ???????????????????????# * h "g #?????? ? | | ???????????????????????# g"" #???? | | ???????????????????????# " " #?? ? | | ???????????????????????#[@% gm # ]??? | | ???????????????????????# =" gr/ r"Y"?????? | | ???????????????????????# "R" / # """?????? | | ???????????????????????# """ #???????????####+# | | ???????????????????????# w #??????????? | | ?????????????##############+#####??????????? | | ???????????? = #??????????? | | ???????????? #??????????? | | ???????????? #??????????? | | ?????????????############# #??????????? | | ?????????????????????????# #??????????? | | ?????????????????????????# = #???????????#####+ | | ??????????????????????#### !##+######??????#### | | ????????????########?##! # = #?????? | | ????????????# #?#! # #??????#### | | ????????????# #?#! =# #?????????# | | ????????????#""" #?# %+[ #?????????# | | ????????????#""" [#?#! # #???????????? | | ????????????#""" #?##! ###############?????? | | ????????????# #?##### ##?????# ?????? | | ???###########+### ###### #?????# ?????? | | ???# "" #?????# ?????? | | ???# < T #?????# ?????? | | ???# ! #?????# #????? | | ???# ############# ##### #?????# #????? | +----------------------------------------------------+ Best States ------------- Heat Dissipation 45 Energy Generation 10 Energy Capacity 250 Matter Stores 300 Matter Capacity 300 Sight Range 16 Terrain Scan Density 10 Armor Coverage 2000 Core Shielding 20 Evasion (%) 55 Recoil Reduction 3 Offensive Hacking 10 Item Schematics ----------------- Huge Storage Unit | -10/Materials | Hacked Hcp. Storage Unit | -10/Materials | Hacked Robot Schematics ------------------ None Fabricated ------------ Nothing Repaired ---------- Lgt. Treads | 27% | -10/Materials Lgt. Treads | 40% | -10/Materials Assault Rifle | 21% | -10/Materials Lgt. Cannon | 40% | -10/Materials Lgt. Treads | 14% | -8/Materials Lgt. Treads | 26% | -8/Materials Alien Tech Used ----------------- None Achievements -------------- None Challenges ------------ None Game ------ Seed RainbowBoltArachnoskeleton Manual? 0 Play Time 00:58:10 Cumulative 238.7 hours Start 2025.06.09 @ 01:04:39 End 2025.06.11 @ 19:26:26 Sessions 12 Manual Loads 0 Difficulty Rogue Special Mode None Game No. 36 Rogue 29 Adventurer 4 Explorer 3 Win Type - Total 23 Types 10/5/2/1/1/0/1/2/0/1 Lore% 68 Gallery% 83 Achievement% 74 Wizard Run 0 Options --------- Layout 0 ASCII 0 Keyboard 0 Movement Mouse Keybinds 0 Fullscreen 1 Font 18/TerminusBold Map View 76x50 Zoom Use 0% Tactical HUD 1 Map Filters NONE Filters NONE Steam X RUN: 133fbe90-0831-4d55-a203-8e1201809257